Workbook

Sheet 51米钢烟囱 (自立式)
A1: 渝石网络 | C1: 自立式钢烟囱计算书
A3: 1 设计依据:
B4: 《建筑结构荷载设计规范》 GB50009-2001（2006）
B5: 《建筑抗震设计规范》 GB50011-2001
B6: 《高耸结构设计规范》 GBJ 135-90
B7: 《烟囱设计规范》 GB50051-2002
A9: 2 烟囱资料:
A10: 钢烟囱高度H | B10: 15.8 | C10: (m) | E10: H/d | G10: =B10/B12 -> 9.875
A11: 上部外径d1 | B11: 1.2 | C11: (m) | E11: 平台直径 | G11: 4 | H11: (m)
A12: 下部外径d2 | B12: 1.6 | C12: (m) | E12: 平台个数 | G12: 1 | H12: 个
A13: 上部壁厚t1 | B13: 10 | C13: (mm) | E13: 上部高度 | G13: 6 | H13: (m)
A14: 下部壁厚t2 | B14: 8 | C14: (mm) | E14: 下部高度 | G14: =B10-G13 -> 9.8 | H14: (m)
A15: 钢材牌号 | B15: Q235 | E15: ft | G15: =IF(B14<=16,215,IF(B14>=40,200,205)) -> 215 | H15: （N/mm2）
A16: 截面面积A1 | B16: =PI()*((B11*1000)^2-(B11*1000-2*B13)^2)/4 -> 37384.95258 | C16: (mm2) | E16: 截面抵抗矩Wt1 | G16: =PI()*((B11*1000)^4-(B11*1000-2*B13)^4)/(B11*10^3)/32 -> 11030118.72 | H16: (mm3)
A17: 截面面积A2 | B17: =PI()*((B12*1000)^2-(B12*1000-2*B14)^2)/4 -> 40011.32404 | C17: (mm2) | E17: 截面抵抗矩Wt2 | G17: =PI()*((B12*1000)^4-(B12*1000-2*B14)^4)/(B12*10^3)/32 -> 15845284.54 | H17: (mm3)
A18: 旋转半径i1 | B18: =SQRT(PI()*((B11*1000)^4-(B11*1000-2*B13)^4)/64/B16) -> 420.7433897 | C18: (mm) | E18: 长细比λ1 | G18: =2*B10*1000/B18 -> 75.10516094
A19: 旋转半径i2 | B19: =SQRT(PI()*((B12*1000)^4-(B12*1000-2*B14)^4)/64/B17) -> 562.8641044 | C19: (mm) | E19: 长细比λ2 | G19: =2*B10*1000/B19 -> 56.14143761
A20: 重力荷载代表值GE | B20: =PI()*(B12-B14/1000)*B14/1000*G14*78.5+PI()*(B11-B13/1000)*B13/1000*G13*78.5+PI()*(G11*G11-B11*B11)/4*(2+2.5)*G12 -> 99.84831191 | C20: (kN)
A21: 自振周期(按烟囱规范):
A22: T1=0.26+0.0024H2/d= | B22: 1.1881 | C22: (S)
B23: =IF(G10>25,"警告 H/d>25 底部直径不满足GB50051-2002自立式要求!!","") -> 
A25: 3 竖向荷载计算:
A26: 重力标准值Gk | B26: =PI()*(B12-B14/1000)*B14/1000*G14*78.5+PI()*(B11-B13/1000)*B13/1000*G13*78.5+PI()*(G11*G11-B11*B11)/4*2*G12 -> 71.25981876 | C26: (kN) | E26: 平台活荷标准值Qk | G26: =PI()*(G11*G11-B11*B11)/4*2.5*G12 -> 28.58849315 | H26: (kN)
A28: 4 风荷载计算:
A29: 基本风压ω0 | B29: 3.52 | C29: (kN/m2) | G29: 地面粗糙度： | H29: B | I29: 类
A30: ω0*T12＝ | B30: =B29*B22*B22 -> 4.968767267 | D30: 查表得： | E30: ξ= | F30: 2.3775
A31: z(m) | B31: z/H | C31: φz | D31: ν | E31: μz | F31: βz | G31: μzω0d2 | H31: μs | I31: ωk
A32: 10 | B32: =A32/B10 -> 0.6329113924 | C32: 0.06 | D32: 0.87 | E32: 1 | F32: =1+F30*D32*C32/E32 -> 1.1241055 | G32: =E32*B29*B12*B12 -> 9.0112 | H32: 1.1 | I32: =F32*H32*E32*B29 -> 4.352536496
A33: 20 | B33: =A33/B10 -> 1.265822785 | C33: 0.23 | D33: 0.87 | E33: 1.25 | F33: =1+F30*D33*C33/E33 -> 1.3805902 | G33: =E33*B29*B12*B12 -> 11.264 | H33: 1.1 | I33: =F33*H33*E33*B29 -> 6.682056568
A34: 30 | B34: =A34/B10 -> 1.898734177 | C34: 0.46 | D34: 0.87 | E34: 1.42 | F34: =1+F30*D34*C34/E34 -> 1.670053169 | G34: =E34*B29*B12*B12 -> 12.795904 | H34: 1.1 | I34: =F34*H34*E34*B29 -> 9.182353136
A35: 40 | B35: =A35/B10 -> 2.53164557 | C35: 0.79 | D35: 0.87 | E35: 1.56 | F35: =1+F30*D35*C35/E35 -> 2.047471635 | G35: =E35*B29*B12*B12 -> 14.057472 | H35: 1.1 | I35: =F35*H35*E35*B29 -> 12.36738386
A36: =B10 -> 15.8 | B36: =A36/B10 -> 1 | C36: 1 | D36: 0.87 | E36: 1.68 | F36: =1+F30*D36*C36/E36 -> 2.231205357 | G36: =E36*B29*B12*B12 -> 15.138816 | H36: 1.1 | I36: =F36*H36*E36*B29 -> 14.5139016
A37: 备注： | B37: z— | C37: 计算高度 | E37: ν— | F37: 脉动影响系数
B38: z/H— | C38: 相对高度 | E38: μz— | F38: 风压高度系数
B39: φz— | C39: 振型系数 | E39: βz— | F39: 风振系数 | G39: βz=1+ξνφz/μz
B40: μs— | C40: 风荷载体型系数 | E40: ξ— | F40: 脉动增大系数
B41: ωk— | C41: 风荷载标准值 ωk=βzμsμzω0
A42: 烟囱顶部风荷载标准值ωk1=ωkd1 | D42: =I36*B11 -> 17.41668192 | E42: （kN/m）
A43: 底部风荷载弯矩标准值 M1k=ωk1H2/3 | D43: =(D42*B10^2)/3 -> 1449.300158 | E43: (kN.m)
A45: 4 横风向风振计算:
A46: 自振周期T1 | B46: =B22 -> 1.1881 | D46: 截面直径D | E46: =(B11+B12)/2 -> 1.4 | F46: 空气密度ρ | H46: 1.293 | I46: Kg/m3
A47: 斯托罗哈数St | B47: 0.2 | E47: 顶部风压高度变化系数μH | H47: =E36 -> 1.68
A48: 临界风速vcr=D/TiSt | B48: =(B11+B12)/2/B22/0.2 -> 5.891759953 | C48: 顶部风速Vh＝(2000μHω0/ρ)1/2 | H48: =SQRT(2000*E36*B29/1.293) -> 95.64047139 | I48: (m/s)
A49: 雷诺数Re=69000vD | B49: =69000*B48*(B11+B12)/2 -> 569144.0114 | C49: =IF(B49<3*10^5,"Re<3.E+05, 可发生亚临界的微风共振，须在构造上采取防振措施！",IF(B49>=3*10^6,"Re>=3.E+06, 可发生跨临界的强风共振，应考虑共振效应！","3.E+05<=Re<3.E+06, 发生超临界范围的共振，可不做处理！")) -> 3.E+05<=Re<3.E+06, 发生超临界范围的共振，可不做处理！
A51: 5 地震荷载计算:
A52: 抗震设防烈度： | B52: 8 | C52: =IF(B52<=7,"可不考虑竖向地震作用！","需考虑竖向地震作用！") -> 需考虑竖向地震作用！ | G52: 加速度： | H52: 0.10g
A53: 结构阻尼比ζ： | B53: 0.01 | D53: 地震分组： | E53: 第一组 | G53: 场地类别： | H53: IV
A54: 查表 剪力修正系数ηC | B54: 0.75 | D54: αmax | E54: 0.04 | G54: 特征周期Tg(s) | H54: 0.35
A55: 下降斜率调整系数η1 | B55: =0.02+(0.05-B53)/8 -> 0.025 | D55: 阻尼调整系数η2 | E55: =1+(0.05-B53)/(0.06+1.7*B53) -> 1.519480519 | F55: 衰减指数γ | H55: =0.9+(0.05-B53)/(0.5+5*B53) -> 0.9727272727
A56: =IF(B22<H54,"地震影响系数α1=η2αmax",IF(B22>=5*H54,"地震影响系数α1=[0.2γη2-η1(T-5Tg)]αmax","地震影响系数α1=(Tg/T)γη2αmax")) -> 地震影响系数α1=(Tg/T)γη2αmax | D56: =IF(B22<H54,E54*E55,IF(B22>5*H54,(0.2^H55*E55-B55*(B22-5*H54))*E54,(H55/B22)^H55*E54*E55)) -> 0.05003364992 | F56: 烟囱顶至重心距离h0 | H56: =B10/2 -> 7.9 | I56: (m)
A57: 底部地震弯矩标准值 M2k=α1GEH0 | D57: =D56*H56*B20 -> 39.46662632 | E57: (kN.m)
A58: 底部地震剪力标准值 V2k=ηCα1GE | D58: =B54*D56*B20 -> 3.746831613 | E58: (kN)
A60: 6 荷载组合:
A61: 轴力设计值 N=1.35Gk＋1.4×0.7×Qk | D61: =1.35*B26+1.4*0.7*G26 -> 124.2174786 | E61: （kN）
A62: 弯矩设计值
A63: 非地震组合 M=1.4×M1k | D63: =1.4*D43 -> 2029.020221 | E63: (kN.m)
A64: 地震组合 M=1.3×M2k+0.2×1.4×M1k | D64: =1.3*D57+0.2*1.4*D43 -> 457.1106585 | E64: (kN.m) | F64: 截面抗震调整系数γRE ＝ | I64: 0.8
B65: =IF(D64*I64<=D63,"非地震组合控制","地震组合控制 ") -> 非地震组合控制
A66: 验算荷载 | B66: N＝ | C66: =D61 -> 124.2174786 | D66: （kN） | E66: M= | F66: =MAX(D63,D64*0.75) -> 2029.020221 | G66: (kN.m)
A68: 7 截面荷载计算:
A69: 1. 强度验算
A70: γx= | B70: =1.15 -> 1.15 | C70: 局部抗压调整系数k | E70: =IF(D63>D64,"1.5","1.2") -> 1.5
A71: σ=N/A2 +M/(γxWt2) （N/mm2） | D71: =D61*10^3/B17+F66*10^6/1.15/G17 -> 114.4541148 | E71: < | F71: =IF(D64*0.75<=D63,"ft=","ft/γRE=") -> ft= | G71: =IF(D64*0.75<=D63,G15,G15/I64) -> 215 | H71: =IF(D71<G71,"满足！","不满足！") -> 满足！
A72: 筒壁局部稳定 0.4Ett2/k/d2 （N/mm2） | D72: =0.4*2.06*10^5*B14/E70/B12/1000 -> 274.6666667 | E72: > | F72: σ＝ | G72: =D71 -> 114.4541148 | H72: =IF(D72>=D71,"满足！","不满足！") -> 满足！
A74: 2. 稳定验算
A75: Nex=π2EA/(1.1λ2)(N) | D75: =PI()*2.06*10^5*B17/1.1/G19^2 -> 7468618.433 | F75: 查表 | G75: φ= | H75: 0.655
A76: σ=N/φA2 +M/Wt2(1-0.8N/NEX) （N/mm2） | D76: =D61*10^3/H75/B17+F66*10^6/G17/(1-0.8*D61*10^3/D75) -> 134.5185498 | E76: < | F76: =IF(D64*0.75<=D63,"ft=","ft/γRE=") -> ft= | G76: =IF(D64*0.75<=D63,G15,G15/I64) -> 215 | H76: =IF(D76<G76,"满足！","不满足！") -> 满足！
A78: 8 地脚螺栓选择:
A79: 螺栓布置所在圆直径d0 | B79: 2300 | C79: （mm） | F79: 螺栓数量n | H79: 36 | I79: (个)
A80: 螺栓材质 | B80: Q235 | F80: 螺栓直径de | H80: 24 | I80: （mm）
A81: 螺栓所受最大拉力为：Pmax＝4M/nd0-N/n= | D81: =4*F66*10^6/H79/B79/1000-D61/H79 -> 94.56981504 | E81: (kN)
A82: 选用M36 | B82: P＝ | C82: 114.3 | D82: (kN) | F82: （螺栓布置见附图）
A84: 9 基础局部受压应力:
A85: 基础混凝土强度等级 C | B85: 30 | C85: βl＝3 | D85: 混凝土ft | E85: =IF(B85=20,1.1,IF(B85=25,1.27,IF(B85=30,1.43,IF(B85=35,1.57,IF(B85=40,1.71,IF(B85=15,0.91)))))) -> 1.43 | F85: 荷载分布影响系数ω | H85: 0.675
A86: 混凝土局部压应力σcbt=N/A+M/W= | C86: =D61*1000/(PI()*B79^2/4)+32*F66*10^6/(PI()*B79^3) -> 1.728544017 | D86: =IF(B86>E86,">",(IF(B86=85,"=","<"))) -> < | E86: =IF(D64*0.75<=D63,"ωβlft=","ωβlft/γRE=") -> ωβlft= | G86: =IF(D64*0.75<=D63,H85*3*E85,H85*3*E85/I64) -> 2.89575 | H86: =IF(C86<G86,"满足！","不满足！") -> 满足！
A88: 10 烟囱顶部位移:
A89: fmax=11ql4/120EI= | B89: =11*D42*POWER((B10*1000),4)/120/206000/((PI()*(POWER((B11*1000),4)-POWER((B11*1000-2*B13),4)))/64) -> 72.98045217 | C89: mm
A90: H/fmax= | B90: =B10*1000/B89 -> 216.4963292 | C90: =IF(B90>D90,">","<=") -> > | D90: 100 | E90: =IF(B90>D90,"满足！","不满足！") -> 满足！
A91: 网上飞石 制作 联系人：黄建春 E-mail: hjc13404@163.com 联系电话：15730252870 QQ群：179510416 版权所有：渝石网络(http://www.fishsting.com) 参考资料：渝石网络内部资料
